[Event "*** SCC Grand Prix: Titled Tuesday Blitz"]
[Site "Chess.com"]
[Date "2020.10.06"]
[Round "6"]
[White "Durarbayli"]
[Black "GelmanAlexander"]
[Result "1-0"]
[WhiteElo "2811"]
[BlackElo "2583"]
[TimeControl "180+1"]
[EndTime "11:09:58 PDT"]
[Termination "Durarbayli won by resignation"]

1. e4 {[%clk 0:03:00.9]} 1... c5 {[%clk 0:02:59.4]} 2. b3 {[%clk 0:02:59.7]}
2... e6 {[%clk 0:02:58.5]} 3. Nf3 {[%clk 0:02:58.4]} 3... a6 {[%clk 0:02:58.6]}
4. Bb2 {[%clk 0:02:49]} 4... d6 {[%clk 0:02:58.1]} 5. d4 {[%clk 0:02:45.2]} 5...
cxd4 {[%clk 0:02:58]} 6. Nxd4 {[%clk 0:02:46.1]} 6... Nf6 {[%clk 0:02:57.7]} 7.
Nc3 {[%clk 0:02:45.8]} 7... Nbd7 {[%clk 0:02:52.5]} 8. g4 {[%clk 0:02:39.3]}
8... h6 {[%clk 0:02:30.9]} 9. Bg2 {[%clk 0:02:38.2]} 9... g5 {[%clk 0:02:24]}
10. h4 {[%clk 0:02:34.8]} 10... Rg8 {[%clk 0:02:23.9]} 11. hxg5 {[%clk
0:02:34.4]} 11... hxg5 {[%clk 0:02:24.8]} 12. Qd2 {[%clk 0:02:27.3]} 12... Ne5
{[%clk 0:02:24.6]} 13. O-O-O {[%clk 0:02:25.2]} 13... Bd7 {[%clk 0:02:11.4]} 14.
Kb1 {[%clk 0:02:24.4]} 14... Qc7 {[%clk 0:02:02.5]} 15. f4 {[%clk 0:02:22.7]}
15... gxf4 {[%clk 0:02:02.1]} 16. Qxf4 {[%clk 0:02:23.6]} 16... Nexg4 {[%clk
0:01:29]} 17. Nde2 {[%clk 0:01:56.4]} 17... Be7 {[%clk 0:01:16.9]} 18. Bh3
{[%clk 0:01:41.5]} 18... O-O-O {[%clk 0:01:16.3]} 19. Rhf1 {[%clk 0:01:30.3]}
19... Kb8 {[%clk 0:01:08]} 20. Ba3 {[%clk 0:01:09.8]} 20... Ne5 {[%clk
0:00:55.7]} 21. Qe3 {[%clk 0:00:59.9]} 21... Bc6 {[%clk 0:00:51.2]} 22. Nd4
{[%clk 0:00:58.1]} 22... Bd7 {[%clk 0:00:45.8]} 23. Nf3 {[%clk 0:00:56.8]} 23...
Nxf3 {[%clk 0:00:41.8]} 24. Rxf3 {[%clk 0:00:57.7]} 24... Bc6 {[%clk 0:00:41.3]}
25. Qd4 {[%clk 0:00:43.8]} 25... Rg6 {[%clk 0:00:32.7]} 26. Rfd3 {[%clk
0:00:40.6]} 26... Ne8 {[%clk 0:00:29.1]} 27. Qf2 {[%clk 0:00:31.8]} 27... Rf6
{[%clk 0:00:28.1]} 28. Qd2 {[%clk 0:00:28.9]} 28... b5 {[%clk 0:00:26.5]} 29.
Bf1 {[%clk 0:00:20.7]} 29... Rg6 {[%clk 0:00:19.2]} 30. Bb4 {[%clk 0:00:18.9]}
30... Qb7 {[%clk 0:00:18.3]} 31. Qf2 {[%clk 0:00:14.2]} 31... Rf6 {[%clk
0:00:17.2]} 32. Qe3 {[%clk 0:00:14.3]} 32... Rg6 {[%clk 0:00:17.1]} 33. Be2
{[%clk 0:00:14.6]} 33... Nf6 {[%clk 0:00:16.6]} 34. e5 {[%clk 0:00:11.7]} 34...
Nd5 {[%clk 0:00:14.7]} 35. Nxd5 {[%clk 0:00:11.1]} 35... Bxd5 {[%clk 0:00:15.6]}
36. Bh5 {[%clk 0:00:06.8]} 36... Rg7 {[%clk 0:00:12.4]} 37. exd6 {[%clk
0:00:06.6]} 37... Bf6 {[%clk 0:00:12.2]} 38. Bf3 {[%clk 0:00:03.9]} 38... Rg3
{[%clk 0:00:11.2]} 39. Rxd5 {[%clk 0:00:04.2]} 39... exd5 {[%clk 0:00:09.6]} 40.
Qf4 {[%clk 0:00:04.6]} 40... Rg6 {[%clk 0:00:08.2]} 41. Bxd5 {[%clk 0:00:04.3]}
41... Qb6 {[%clk 0:00:07.6]} 42. Bxf7 {[%clk 0:00:04.8]} 42... Rg1 {[%clk
0:00:06.3]} 43. d7+ {[%clk 0:00:04.9]} 43... Ka7 {[%clk 0:00:06]} 44. Rf1 {[%clk
0:00:02.4]} 44... Qd4 {[%clk 0:00:05]} 45. Qxd4+ {[%clk 0:00:01.9]} 45... Bxd4
{[%clk 0:00:05.3]} 46. Rxg1 {[%clk 0:00:02.8]} 46... Bxg1 {[%clk 0:00:06.2]} 47.
Be8 {[%clk 0:00:03.4]} 47... Kb6 {[%clk 0:00:05.8]} 48. Be7 {[%clk 0:00:03.4]}
48... Kc7 {[%clk 0:00:06.1]} 49. Bxd8+ {[%clk 0:00:03.4]} 49... Kxd8 {[%clk
0:00:06.3]} 50. Kb2 {[%clk 0:00:03.8]} 50... b4 {[%clk 0:00:06]} 51. c4 {[%clk
0:00:03.7]} 51... Bd4+ {[%clk 0:00:05]} 52. Kc2 {[%clk 0:00:03.8]} 52... Bf6
{[%clk 0:00:04.7]} 53. Kd3 {[%clk 0:00:04.7]} 53... Kc7 {[%clk 0:00:04.6]} 54.
Ke4 {[%clk 0:00:05.3]} 54... Bd8 {[%clk 0:00:05.3]} 55. Kd5 {[%clk 0:00:05.4]}
55... Kb6 {[%clk 0:00:05.9]} 56. Kd6 {[%clk 0:00:05]} 56... a5 {[%clk
0:00:05.9]} 57. c5+ {[%clk 0:00:05]} 57... Kb7 {[%clk 0:00:06.1]} 58. Bg6 {[%clk
0:00:05.9]} 58... Ka6 {[%clk 0:00:06.1]} 59. Be4 {[%clk 0:00:06.8]} 59... Ka7
{[%clk 0:00:06.1]} 60. Kc6 {[%clk 0:00:04.8]} 60... Ka6 {[%clk 0:00:06.2]} 61.
Bd3+ {[%clk 0:00:04.4]} 61... Ka7 {[%clk 0:00:06.7]} 62. Bf5 {[%clk 0:00:04.8]}
62... Ka6 {[%clk 0:00:05.9]} 63. Be4 {[%clk 0:00:03.8]} 63... Ka7 {[%clk
0:00:06.4]} 64. Kd6 {[%clk 0:00:04.7]} 64... Ka6 {[%clk 0:00:06.8]} 65. Ke6
{[%clk 0:00:04.8]} 65... Kb5 {[%clk 0:00:06.7]} 66. Kf7 {[%clk 0:00:03.5]} 66...
Kxc5 {[%clk 0:00:03.7]} 67. Ke8 {[%clk 0:00:04.4]} 67... Bb6 {[%clk 0:00:03.4]}
68. d8=Q {[%clk 0:00:05.3]} 68... Bxd8 {[%clk 0:00:04]} 69. Kxd8 {[%clk
0:00:06]} 69... Kd4 {[%clk 0:00:04.9]} 70. Bc6 {[%clk 0:00:06.1]} 70... Kc3
{[%clk 0:00:05.8]} 71. Ba4 {[%clk 0:00:07]} 71... Kb2 {[%clk 0:00:06.2]} 72. Kc7
{[%clk 0:00:07.9]} 72... Kxa2 {[%clk 0:00:06.7]} 73. Kb6 {[%clk 0:00:08.8]}
73... Kb2 {[%clk 0:00:07.4]} 74. Kxa5 {[%clk 0:00:09.7]} 74... Kc3 {[%clk
0:00:08.3]} 75. Kb5 {[%clk 0:00:10]} 1-0

[Event "*** SCC Grand Prix: Titled Tuesday Blitz"]
[Site "Chess.com"]
[Date "2020.10.06"]
[Round "6"]
[White "sergoy"]
[Black "Joshukid"]
[Result "0-1"]
[WhiteElo "2861"]
[BlackElo "2722"]
[TimeControl "180+1"]
[EndTime "11:10:10 PDT"]
[Termination "Joshukid won on time"]

1. d4 {[%clk 0:03:00.9]} 1... g6 {[%clk 0:02:58.3]} 2. c4 {[%clk 0:03:01.4]}
2... Bg7 {[%clk 0:02:58.9]} 3. Nc3 {[%clk 0:03:02.1]} 3... d6 {[%clk 0:02:59.6]}
4. Nf3 {[%clk 0:03:00.4]} 4... e5 {[%clk 0:03:00.1]} 5. Bg5 {[%clk 0:02:57.8]}
5... f6 {[%clk 0:02:57.9]} 6. Bd2 {[%clk 0:02:56.1]} 6... Nc6 {[%clk 0:02:54.3]}
7. d5 {[%clk 0:02:56.2]} 7... Nce7 {[%clk 0:02:53.2]} 8. e4 {[%clk 0:02:56]}
8... f5 {[%clk 0:02:50.8]} 9. Ng5 {[%clk 0:02:45.8]} 9... h6 {[%clk 0:02:38.3]}
10. Ne6 {[%clk 0:02:45.6]} 10... Bxe6 {[%clk 0:02:38.8]} 11. dxe6 {[%clk
0:02:46.5]} 11... Qc8 {[%clk 0:02:31.5]} 12. c5 {[%clk 0:02:29.1]} 12... dxc5
{[%clk 0:02:16.2]} 13. Bc4 {[%clk 0:02:26.5]} 13... Nf6 {[%clk 0:02:10.9]} 14.
O-O {[%clk 0:02:24.1]} 14... c6 {[%clk 0:02:05.3]} 15. a4 {[%clk 0:02:18.6]}
15... f4 {[%clk 0:01:58]} 16. a5 {[%clk 0:01:58.3]} 16... O-O {[%clk 0:01:53.7]}
17. Na4 {[%clk 0:01:58.1]} 17... Nxe4 {[%clk 0:01:49.7]} 18. Be1 {[%clk
0:01:53]} 18... Qc7 {[%clk 0:01:30.6]} 19. Qc2 {[%clk 0:01:49.3]} 19... Nd6
{[%clk 0:01:24.2]} 20. Nxc5 {[%clk 0:01:45.2]} 20... Nxc4 {[%clk 0:01:11.3]} 21.
Qxc4 {[%clk 0:01:46.1]} 21... Nd5 {[%clk 0:01:05.3]} 22. Rd1 {[%clk 0:01:43.8]}
22... Rfe8 {[%clk 0:01:03.4]} 23. Bb4 {[%clk 0:01:11.6]} 23... Rad8 {[%clk
0:00:53.6]} 24. Rd3 {[%clk 0:00:57.7]} 24... Bf8 {[%clk 0:00:47.9]} 25. Nd7
{[%clk 0:00:46.2]} 25... Bxb4 {[%clk 0:00:16.1]} 26. Rxd5 {[%clk 0:00:40.8]}
26... Re7 {[%clk 0:00:10.7]} 27. Rxe5 {[%clk 0:00:24]} 27... Bd6 {[%clk
0:00:11.3]} 28. Re4 {[%clk 0:00:23.6]} 28... Qxa5 {[%clk 0:00:09.1]} 29. Qd4
{[%clk 0:00:22]} 29... Bc7 {[%clk 0:00:06.6]} 30. Qf6 {[%clk 0:00:20.2]} 30...
Qg5 {[%clk 0:00:03.7]} 31. Qc3 {[%clk 0:00:16.5]} 31... Qf5 {[%clk 0:00:02.5]}
32. Rfe1 {[%clk 0:00:15]} 32... Rdxd7 {[%clk 0:00:02.1]} 33. exd7 {[%clk
0:00:10.7]} 33... Rxe4 {[%clk 0:00:03]} 34. Rd1 {[%clk 0:00:11.6]} 34... Bd8
{[%clk 0:00:03]} 35. Qb3+ {[%clk 0:00:12]} 35... Qe6 {[%clk 0:00:03]} 36. Qc3
{[%clk 0:00:12.1]} 36... Qe7 {[%clk 0:00:02.4]} 37. h3 {[%clk 0:00:11.5]} 37...
Re5 {[%clk 0:00:02.6]} 38. Qb3+ {[%clk 0:00:11.3]} 38... Qf7 {[%clk 0:00:01.4]}
39. Qxb7 {[%clk 0:00:10.9]} 39... Rd5 {[%clk 0:00:01.3]} 40. Rxd5 {[%clk
0:00:10.7]} 40... cxd5 {[%clk 0:00:01.8]} 41. Qc8 {[%clk 0:00:11]} 41... Qe7
{[%clk 0:00:02.3]} 42. Qc6 {[%clk 0:00:11.1]} 42... d4 {[%clk 0:00:02.1]} 43.
Qxg6+ {[%clk 0:00:11.2]} 43... Kf8 {[%clk 0:00:01.3]} 44. Qxh6+ {[%clk
0:00:11.3]} 44... Qg7 {[%clk 0:00:01.7]} 45. Qe6 {[%clk 0:00:11.1]} 45... Qe7
{[%clk 0:00:01.4]} 46. Qf5+ {[%clk 0:00:10.9]} 46... Qf6 {[%clk 0:00:01.8]} 47.
Qd5 {[%clk 0:00:11.3]} 47... Ke7 {[%clk 0:00:02.5]} 48. b3 {[%clk 0:00:11]}
48... Qd6 {[%clk 0:00:02.9]} 49. Qe4+ {[%clk 0:00:08.7]} 49... Kxd7 {[%clk
0:00:03.8]} 50. Qd3 {[%clk 0:00:09.3]} 50... Bf6 {[%clk 0:00:03.8]} 51. b4
{[%clk 0:00:08.4]} 51... Qxb4 {[%clk 0:00:04]} 52. Qf5+ {[%clk 0:00:08.8]} 52...
Ke7 {[%clk 0:00:03.2]} 53. Qe4+ {[%clk 0:00:08.4]} 53... Kf7 {[%clk 0:00:03.3]}
54. Qh7+ {[%clk 0:00:08]} 54... Kf8 {[%clk 0:00:03.4]} 55. Qf5 {[%clk
0:00:06.9]} 55... Qd6 {[%clk 0:00:02.4]} 56. Qd3 {[%clk 0:00:05.4]} 56... Qe5
{[%clk 0:00:02.3]} 57. h4 {[%clk 0:00:06.3]} 57... a5 {[%clk 0:00:02.9]} 58. Qc4
{[%clk 0:00:04]} 58... Qe1+ {[%clk 0:00:02.5]} 59. Kh2 {[%clk 0:00:03.9]} 59...
Qxf2 {[%clk 0:00:03.3]} 60. Qc8+ {[%clk 0:00:04.8]} 60... Kg7 {[%clk 0:00:03.8]}
61. Qg4+ {[%clk 0:00:05.1]} 61... Kf8 {[%clk 0:00:03.7]} 62. Qc8+ {[%clk
0:00:05.3]} 62... Kf7 {[%clk 0:00:04.5]} 63. Qd7+ {[%clk 0:00:05.7]} 63... Kg6
{[%clk 0:00:03.4]} 64. Qg4+ {[%clk 0:00:06.2]} 64... Kh6 {[%clk 0:00:03.3]} 65.
Qe6 {[%clk 0:00:06.4]} 65... Qxh4+ {[%clk 0:00:03.5]} 66. Kg1 {[%clk 0:00:07.1]}
66... Qg5 {[%clk 0:00:03.4]} 67. Qe8 {[%clk 0:00:06.6]} 67... Qe5 {[%clk
0:00:03.1]} 68. Qf8+ {[%clk 0:00:06.5]} 68... Bg7 {[%clk 0:00:03.2]} 69. Qc8
{[%clk 0:00:05]} 69... d3 {[%clk 0:00:02.8]} 70. Qc6+ {[%clk 0:00:04.8]} 70...
Kg5 {[%clk 0:00:03.2]} 71. Qf3 {[%clk 0:00:05.3]} 71... Qe3+ {[%clk 0:00:03.5]}
0-1

[Event "*** SCC Grand Prix: Titled Tuesday Blitz"]
[Site "Chess.com"]
[Date "2020.10.06"]
[Round "6"]
[White "mirceaparligras"]
[Black "DariaVoit"]
[Result "0-1"]
[WhiteElo "2653"]
[BlackElo "2515"]
[TimeControl "180+1"]
[EndTime "11:10:10 PDT"]
[Termination "DariaVoit won by resignation"]

1. d4 {[%clk 0:03:00.9]} 1... f5 {[%clk 0:02:59.3]} 2. Nc3 {[%clk 0:03:00.1]}
2... Nf6 {[%clk 0:02:58.8]} 3. Bg5 {[%clk 0:02:58.8]} 3... d5 {[%clk 0:02:47.3]}
4. Bxf6 {[%clk 0:02:58.1]} 4... gxf6 {[%clk 0:02:41.3]} 5. e3 {[%clk 0:02:54.5]}
5... Be6 {[%clk 0:02:37.7]} 6. Be2 {[%clk 0:02:49.7]} 6... c5 {[%clk 0:02:33.5]}
7. Bh5+ {[%clk 0:02:48.4]} 7... Bf7 {[%clk 0:02:32.9]} 8. Bxf7+ {[%clk
0:02:47.3]} 8... Kxf7 {[%clk 0:02:33.8]} 9. Qh5+ {[%clk 0:02:47.5]} 9... Kg7
{[%clk 0:02:33.4]} 10. Qxf5 {[%clk 0:02:44.5]} 10... cxd4 {[%clk 0:02:33.5]} 11.
exd4 {[%clk 0:02:43]} 11... Nc6 {[%clk 0:02:34]} 12. O-O-O {[%clk 0:02:38.2]}
12... Rg8 {[%clk 0:02:22.6]} 13. Nge2 {[%clk 0:02:23.9]} 13... Kh8 {[%clk
0:02:22.1]} 14. Nf4 {[%clk 0:02:19.5]} 14... Bh6 {[%clk 0:02:15.6]} 15. Kb1
{[%clk 0:01:58.7]} 15... Bxf4 {[%clk 0:02:06.7]} 16. Qxf4 {[%clk 0:01:58.8]}
16... Rxg2 {[%clk 0:02:06.9]} 17. Qf3 {[%clk 0:01:57.3]} 17... Qg8 {[%clk
0:01:55.9]} 18. Nxd5 {[%clk 0:01:50.8]} 18... Rd8 {[%clk 0:01:55]} 19. Nf4
{[%clk 0:01:38.4]} 19... Rg5 {[%clk 0:01:46.4]} 20. d5 {[%clk 0:01:33.7]} 20...
Ne5 {[%clk 0:01:44.8]} 21. Qe2 {[%clk 0:01:26.6]} 21... Rg4 {[%clk 0:01:39.1]}
22. Ne6 {[%clk 0:01:23.6]} 22... Rd6 {[%clk 0:01:31.6]} 23. f4 {[%clk
0:01:15.7]} 23... Nd7 {[%clk 0:01:30.7]} 24. Qe3 {[%clk 0:01:03]} 24... Nb6
{[%clk 0:01:27.1]} 25. Qf3 {[%clk 0:00:46.9]} 25... Qg6 {[%clk 0:01:02.5]} 26.
f5 {[%clk 0:00:42.7]} 26... Qg8 {[%clk 0:00:53.7]} 27. b3 {[%clk 0:00:39.6]}
27... Nd7 {[%clk 0:00:51.7]} 28. Qe3 {[%clk 0:00:28.6]} 28... a5 {[%clk
0:00:48.9]} 29. c4 {[%clk 0:00:23.6]} 29... a4 {[%clk 0:00:42.4]} 30. Rhg1
{[%clk 0:00:23.4]} 30... axb3 {[%clk 0:00:42.3]} 31. axb3 {[%clk 0:00:24.2]}
31... Ne5 {[%clk 0:00:38.9]} 32. h3 {[%clk 0:00:22.5]} 32... Rg2 {[%clk
0:00:36.1]} 33. Nf4 {[%clk 0:00:21.3]} 33... Rg5 {[%clk 0:00:27.5]} 34. Ne6
{[%clk 0:00:16.9]} 34... Rg2 {[%clk 0:00:27.2]} 35. Nf4 {[%clk 0:00:12.9]} 35...
Rg5 {[%clk 0:00:26.2]} 36. Rxg5 {[%clk 0:00:13]} 36... Qxg5 {[%clk 0:00:25.5]}
37. Qe4 {[%clk 0:00:11.1]} 37... Ra6 {[%clk 0:00:21.2]} 38. Ne6 {[%clk
0:00:09.8]} 38... Qg3 {[%clk 0:00:19.6]} 39. Qc2 {[%clk 0:00:08.7]} 39... Rb6
{[%clk 0:00:19.4]} 40. Nd4 {[%clk 0:00:07.3]} 40... h5 {[%clk 0:00:15.6]} 41. c5
{[%clk 0:00:07.6]} 41... Rb4 {[%clk 0:00:14.1]} 42. c6 {[%clk 0:00:07.4]} 42...
bxc6 {[%clk 0:00:12.5]} 43. dxc6 {[%clk 0:00:08.3]} 43... Rb8 {[%clk 0:00:09]}
44. c7 {[%clk 0:00:08.5]} 44... Rc8 {[%clk 0:00:09.6]} 45. Ne6 {[%clk
0:00:08.3]} 45... Kh7 {[%clk 0:00:07.5]} 46. Rd8 {[%clk 0:00:08.1]} 46... Qg1+
{[%clk 0:00:07.2]} 47. Qc1 {[%clk 0:00:06.4]} 47... Qb6 {[%clk 0:00:03.8]} 48.
Rxc8 {[%clk 0:00:05.8]} 48... Qxb3+ {[%clk 0:00:04]} 49. Qb2 {[%clk 0:00:06]}
49... Qd1+ {[%clk 0:00:04]} 50. Ka2 {[%clk 0:00:05.8]} 50... Qa4+ {[%clk
0:00:04.3]} 51. Qa3 {[%clk 0:00:06.2]} 51... Qc2+ {[%clk 0:00:04.6]} 52. Ka1
{[%clk 0:00:06.6]} 52... Qd1+ {[%clk 0:00:04.8]} 53. Kb2 {[%clk 0:00:07.1]}
53... Nc4+ {[%clk 0:00:04.2]} 54. Kc3 {[%clk 0:00:06.9]} 54... Nxa3 {[%clk
0:00:04.3]} 55. Rh8+ {[%clk 0:00:07.2]} 55... Kxh8 {[%clk 0:00:05.2]} 56. c8=Q+
{[%clk 0:00:07.6]} 56... Kh7 {[%clk 0:00:05.8]} 57. Nf8+ {[%clk 0:00:07.5]}
57... Kh6 {[%clk 0:00:05.2]} 58. Qe6 {[%clk 0:00:05]} 58... Qf3+ {[%clk
0:00:05.3]} 59. Kb4 {[%clk 0:00:03.6]} 59... Nc2+ {[%clk 0:00:05.4]} 60. Kc5
{[%clk 0:00:04.1]} 60... Qe3+ {[%clk 0:00:05.3]} 61. Kc4 {[%clk 0:00:02.5]}
61... Qxe6+ {[%clk 0:00:05]} 62. Nxe6 {[%clk 0:00:01]} 62... Ne3+ {[%clk
0:00:05.3]} 63. Kd4 {[%clk 0:00:01.4]} 63... Nxf5+ {[%clk 0:00:06.1]} 64. Ke4
{[%clk 0:00:02.3]} 64... Ng7 {[%clk 0:00:05.8]} 65. Nc7 {[%clk 0:00:02.1]} 65...
Kg6 {[%clk 0:00:05.7]} 66. Nd5 {[%clk 0:00:02.3]} 66... e5 {[%clk 0:00:05.9]}
67. Ne7+ {[%clk 0:00:02.3]} 67... Kf7 {[%clk 0:00:05.8]} 68. Nd5 {[%clk
0:00:02.8]} 68... Ne6 {[%clk 0:00:05.2]} 69. Kf5 {[%clk 0:00:02.6]} 69... Nd4+
{[%clk 0:00:05.4]} 70. Ke4 {[%clk 0:00:03.1]} 70... Kg6 {[%clk 0:00:05.9]} 71.
Ne7+ {[%clk 0:00:03]} 71... Kg5 {[%clk 0:00:06.2]} 72. Nd5 {[%clk 0:00:01.8]}
72... Nc6 {[%clk 0:00:05.8]} 73. Ne7 {[%clk 0:00:01.6]} 73... Nxe7 {[%clk
0:00:05.8]} 74. Kf3 {[%clk 0:00:01.5]} 74... f5 {[%clk 0:00:05.5]} 75. Kg2
{[%clk 0:00:02.4]} 75... e4 {[%clk 0:00:05.9]} 76. Kg3 {[%clk 0:00:02.6]} 76...
f4+ {[%clk 0:00:06.5]} 77. Kf2 {[%clk 0:00:03.5]} 77... Kf5 {[%clk 0:00:07]} 78.
Ke2 {[%clk 0:00:04.4]} 78... Ng6 {[%clk 0:00:07.6]} 79. Kf2 {[%clk 0:00:05.3]}
79... Kg5 {[%clk 0:00:08.2]} 80. Kg2 {[%clk 0:00:06.2]} 80... Kh4 {[%clk
0:00:09.1]} 81. Kf2 {[%clk 0:00:07.1]} 81... Kxh3 {[%clk 0:00:09.5]} 82. Ke2
{[%clk 0:00:07.3]} 82... Kg4 {[%clk 0:00:10.4]} 83. Kf2 {[%clk 0:00:07.7]} 83...
e3+ {[%clk 0:00:11.3]} 84. Ke2 {[%clk 0:00:08]} 84... Kg3 {[%clk 0:00:11.4]} 85.
Kd3 {[%clk 0:00:08.6]} 85... f3 {[%clk 0:00:11.9]} 86. Kd4 {[%clk 0:00:09.5]}
86... f2 {[%clk 0:00:12.5]} 0-1

[Event "*** SCC Grand Prix: Titled Tuesday Blitz"]
[Site "Chess.com"]
[Date "2020.10.06"]
[Round "6"]
[White "chessplayer9919"]
[Black "AlexOstrovskiy"]
[Result "1/2-1/2"]
[WhiteElo "2618"]
[BlackElo "2752"]
[TimeControl "180+1"]
[EndTime "11:10:26 PDT"]
[Termination "Game drawn by repetition"]

1. d4 {[%clk 0:03:00.9]} 1... Nf6 {[%clk 0:02:52.3]} 2. c4 {[%clk 0:03:00.4]}
2... e5 {[%clk 0:02:51.8]} 3. dxe5 {[%clk 0:02:59.3]} 3... Ng4 {[%clk
0:02:51.7]} 4. Nf3 {[%clk 0:02:59.1]} 4... Bc5 {[%clk 0:02:51.4]} 5. e3 {[%clk
0:02:55.9]} 5... Nc6 {[%clk 0:02:51.8]} 6. Nc3 {[%clk 0:02:47.5]} 6... O-O
{[%clk 0:02:50.1]} 7. Bd3 {[%clk 0:02:41]} 7... Re8 {[%clk 0:02:48.5]} 8. Ne4
{[%clk 0:02:18.4]} 8... Bb4+ {[%clk 0:02:39]} 9. Bd2 {[%clk 0:02:18]} 9... Bxd2+
{[%clk 0:02:38.8]} 10. Nexd2 {[%clk 0:01:52.6]} 10... Ngxe5 {[%clk 0:02:39.7]}
11. Nxe5 {[%clk 0:01:51.7]} 11... Nxe5 {[%clk 0:02:40.6]} 12. Be2 {[%clk
0:01:48.6]} 12... d5 {[%clk 0:02:36.3]} 13. cxd5 {[%clk 0:01:24.8]} 13... Qxd5
{[%clk 0:02:37.2]} 14. O-O {[%clk 0:01:25]} 14... Be6 {[%clk 0:02:25.2]} 15. Nf3
{[%clk 0:01:20.9]} 15... Rad8 {[%clk 0:02:14.9]} 16. Qa4 {[%clk 0:01:16.1]}
16... b6 {[%clk 0:01:43.7]} 17. Qxa7 {[%clk 0:00:58.8]} 17... Nxf3+ {[%clk
0:01:20.4]} 18. Bxf3 {[%clk 0:00:57.6]} 18... Qe5 {[%clk 0:01:21.3]} 19. Bc6
{[%clk 0:00:37.8]} 19... Rf8 {[%clk 0:01:17.5]} 20. Qa3 {[%clk 0:00:29.7]} 20...
Rd2 {[%clk 0:01:12.7]} 21. Qc3 {[%clk 0:00:21.6]} 21... Qxc3 {[%clk 0:01:08.8]}
22. bxc3 {[%clk 0:00:22.5]} 22... Bxa2 {[%clk 0:01:09.2]} 23. Rfd1 {[%clk
0:00:20.3]} 23... Rfd8 {[%clk 0:01:08.7]} 24. Rxd2 {[%clk 0:00:17.4]} 24... Rxd2
{[%clk 0:01:09.6]} 25. h3 {[%clk 0:00:15.5]} 25... Kf8 {[%clk 0:01:04.3]} 26.
Kf1 {[%clk 0:00:10]} 26... Ke7 {[%clk 0:01:02.6]} 27. Ke1 {[%clk 0:00:09.2]}
27... Rb2 {[%clk 0:01:03.2]} 28. Be4 {[%clk 0:00:06]} 28... g6 {[%clk
0:00:57.2]} 29. Rd1 {[%clk 0:00:05.9]} 29... Bc4 {[%clk 0:00:54.9]} 30. Rd2
{[%clk 0:00:05]} 30... Rb3 {[%clk 0:00:51.3]} 31. Rc2 {[%clk 0:00:03]} 31... f5
{[%clk 0:00:42]} 32. Bf3 {[%clk 0:00:03.1]} 32... Rb1+ {[%clk 0:00:42.6]} 33.
Kd2 {[%clk 0:00:02.4]} 33... Rf1 {[%clk 0:00:43.2]} 34. h4 {[%clk 0:00:01.2]}
34... Rxf2+ {[%clk 0:00:43.4]} 35. Kc1 {[%clk 0:00:01.9]} 35... Rxc2+ {[%clk
0:00:34.6]} 36. Kxc2 {[%clk 0:00:02.8]} 36... Kd6 {[%clk 0:00:35.5]} 37. Kd2
{[%clk 0:00:03.2]} 37... Ke5 {[%clk 0:00:35.9]} 38. g4 {[%clk 0:00:03.3]} 38...
fxg4 {[%clk 0:00:24.4]} 39. Bxg4 {[%clk 0:00:04.2]} 39... Be6 {[%clk 0:00:25]}
40. Bf3 {[%clk 0:00:03.6]} 40... Bd5 {[%clk 0:00:25.5]} 41. Bg4 {[%clk
0:00:03.7]} 41... h6 {[%clk 0:00:25.3]} 42. Bd7 {[%clk 0:00:03.5]} 42... Ke4
{[%clk 0:00:17.5]} 43. Ke2 {[%clk 0:00:02.9]} 43... Bc4+ {[%clk 0:00:14.5]} 44.
Kd2 {[%clk 0:00:03.1]} 44... Kf3 {[%clk 0:00:10.8]} 45. Be8 {[%clk 0:00:02.7]}
45... g5 {[%clk 0:00:11]} 46. hxg5 {[%clk 0:00:03.6]} 46... hxg5 {[%clk
0:00:11.9]} 47. Bc6+ {[%clk 0:00:04.4]} 47... Kf2 {[%clk 0:00:10.7]} 48. Bd7
{[%clk 0:00:03.7]} 48... Be2 {[%clk 0:00:10.5]} 49. e4 {[%clk 0:00:03.8]} 49...
g4 {[%clk 0:00:09.1]} 50. e5 {[%clk 0:00:02.8]} 50... g3 {[%clk 0:00:09.2]} 51.
Bh3 {[%clk 0:00:01.7]} 51... Bf1 {[%clk 0:00:07.4]} 52. Bxf1 {[%clk 0:00:01.8]}
52... Kxf1 {[%clk 0:00:08.3]} 53. e6 {[%clk 0:00:02.7]} 53... g2 {[%clk
0:00:09]} 54. e7 {[%clk 0:00:03.6]} 54... g1=Q {[%clk 0:00:09.9]} 55. e8=Q
{[%clk 0:00:04.4]} 55... Qf2+ {[%clk 0:00:07]} 56. Kd3 {[%clk 0:00:04.6]} 56...
Qf5+ {[%clk 0:00:05]} 57. Kc4 {[%clk 0:00:04.7]} 57... Qc5+ {[%clk 0:00:04.8]}
58. Kd3 {[%clk 0:00:04.9]} 58... Kf2 {[%clk 0:00:04.3]} 59. Qe2+ {[%clk
0:00:03.4]} 59... Kg3 {[%clk 0:00:04.5]} 60. Qe1+ {[%clk 0:00:03.4]} 60... Kf4
{[%clk 0:00:04.4]} 61. Qd2+ {[%clk 0:00:02.3]} 61... Kf5 {[%clk 0:00:02.9]} 62.
Qh2 {[%clk 0:00:02.2]} 62... Ke6 {[%clk 0:00:02.8]} 63. Qh6+ {[%clk 0:00:01.8]}
63... Kd7 {[%clk 0:00:03.1]} 64. Qh7+ {[%clk 0:00:02.1]} 64... Kc6 {[%clk
0:00:04]} 65. Qg6+ {[%clk 0:00:02.3]} 65... Qd6+ {[%clk 0:00:04.9]} 66. Qxd6+
{[%clk 0:00:01.8]} 66... Kxd6 {[%clk 0:00:05.8]} 67. Kc4 {[%clk 0:00:01.8]}
67... Kc6 {[%clk 0:00:05.1]} 68. Kb4 {[%clk 0:00:01.9]} 68... Kd5 {[%clk
0:00:05.1]} 69. Kb5 {[%clk 0:00:01.8]} 69... Kd6 {[%clk 0:00:03.8]} 70. c4
{[%clk 0:00:01.8]} 70... Kd7 {[%clk 0:00:01.9]} 71. c5 {[%clk 0:00:02]} 71...
bxc5 {[%clk 0:00:01.8]} 72. Kxc5 {[%clk 0:00:02.9]} 72... c6 {[%clk 0:00:02.7]}
73. Kc4 {[%clk 0:00:03]} 73... Kc7 {[%clk 0:00:03.6]} 74. Kc5 {[%clk 0:00:02.9]}
74... Kb7 {[%clk 0:00:03.9]} 75. Kc4 {[%clk 0:00:03.2]} 75... Kb6 {[%clk
0:00:04.8]} 76. Kb4 {[%clk 0:00:01.9]} 76... c5+ {[%clk 0:00:05.7]} 77. Kc4
{[%clk 0:00:01.6]} 77... Kc6 {[%clk 0:00:05.9]} 78. Kc3 {[%clk 0:00:01.8]} 78...
Kb5 {[%clk 0:00:06.8]} 79. Kb3 {[%clk 0:00:01.9]} 79... c4+ {[%clk 0:00:07]} 80.
Kc3 {[%clk 0:00:02.5]} 80... Kc5 {[%clk 0:00:07.9]} 81. Kc2 {[%clk 0:00:03]}
81... Kb4 {[%clk 0:00:08.8]} 82. Kb2 {[%clk 0:00:02.6]} 82... Kc5 {[%clk
0:00:09.7]} 83. Kc3 {[%clk 0:00:02.5]} 83... Kd5 {[%clk 0:00:10]} 84. Kc2 {[%clk
0:00:03.4]} 84... Kd4 {[%clk 0:00:10.9]} 85. Kd2 {[%clk 0:00:03.2]} 85... c3+
{[%clk 0:00:11.8]} 86. Kc2 {[%clk 0:00:03]} 86... Kc4 {[%clk 0:00:12.7]} 87. Kc1
{[%clk 0:00:02.9]} 87... Kb3 {[%clk 0:00:13.6]} 88. Kb1 {[%clk 0:00:02.5]} 88...
Kb4 {[%clk 0:00:14.5]} 89. Kc2 {[%clk 0:00:03.3]} 89... Kc4 {[%clk 0:00:15.4]}
90. Kc1 {[%clk 0:00:02.7]} 90... Kd4 {[%clk 0:00:16.3]} 91. Kc2 {[%clk
0:00:02.6]} 91... Kc4 {[%clk 0:00:16.3]} 1/2-1/2